fUST/lending_fUST_20250715
["ID","MTS","AMOUNT","RATE_DAILY","PERIOD"]
[372277802,1752571860725,-460.0,0.00020821,2]
[372277803,1752571860735,-460.0,0.00020821,2]
[372277804,1752571860745,-460.0,0.00020821,2]
[372277805,1752571860755,-460.0,0.00020821,2]
[372277806,1752571860764,-460.0,0.00020821,2]
[372277807,1752571860773,-504.7,0.00020821,2]
[372277808,1752571860783,-460.0,0.00020821,2]
[372277809,1752571860793,-460.0,0.00020821,2]
[372277810,1752571860803,-460.0,0.00020821,2]
[372277811,1752571860812,-460.0,0.00020821,2]
[372277812,1752571860822,-460.0,0.00020821,2]
[372277813,1752571860831,-460.0,0.00020821,2]
[372277814,1752571860841,-360.87122314,0.00020821,2]
[372277815,1752571860850,-460.0,0.00020821,2]
[372277816,1752571860860,-1973.65,0.00020821,2]
[372277817,1752571860869,-460.0,0.00020821,2]
[372277818,1752571860878,-460.0,0.00020821,2]
[372277819,1752571860888,-281.42296728,0.00020821,2]
[372277820,1752571860897,-460.0,0.00020821,2]
[372277821,1752571860909,-460.0,0.00020821,2]
[372277822,1752571860918,-460.0,0.00020821,2]
[372277823,1752571860928,-4194.43,0.00020821,2]
[372277824,1752571860938,-460.0,0.00020821,2]
[372277825,1752571860947,-1047.41,0.00020821,2]
[372277826,1752571860957,-460.0,0.00020821,2]
[372277827,1752571860966,-862.77,0.00020821,2]
[372277828,1752571860976,-1374.17,0.00020821,2]
[372277829,1752571860987,-4931.56,0.00020821,2]
[372277830,1752571860997,-460.0,0.00020821,2]
[372277831,1752571861007,-460.0,0.00020821,2]
[372277832,1752571861016,-460.0,0.00020821,2]
[372277833,1752571861026,-460.0,0.00020821,2]
[372277834,1752571861036,-460.0,0.00020821,2]
[372277835,1752571861046,-463.68112012,0.00020821,2]
[372277836,1752571861056,-460.0,0.00020821,2]
[372277837,1752571861066,-460.0,0.00020821,2]
[372277838,1752571861075,-460.0,0.00020821,2]
[372277839,1752571861085,-460.0,0.00020821,2]
[372277840,1752571861095,-460.0,0.00020821,2]
[372277841,1752571861105,-3287.18,0.00020821,2]
[372277842,1752571861115,-460.0,0.00020821,2]
[372277843,1752571861124,-460.0,0.00020821,2]
[372277844,1752571861134,-5076.08,0.00020821,2]
[372277845,1752571861144,-598.12,0.00020821,2]
[372277846,1752571861153,-1503.55,0.00020821,2]
[372277847,1752571861163,-532.6,0.00020821,2]
[372277848,1752571861173,-460.0,0.00020821,2]
[372277849,1752571861182,-460.0,0.00020821,2]
[372277850,1752571861192,-460.0,0.00020821,2]
[372277851,1752571861201,-460.0,0.00020821,2]
[372277852,1752571861211,-460.0,0.00020821,2]
[372277853,1752571861222,-460.0,0.00020821,2]
[372277854,1752571861232,-460.0,0.00020821,2]
[372277855,1752571861243,-511.82,0.00020821,2]
[372277856,1752571861252,-460.0,0.00020821,2]
[372277857,1752571861262,-460.0,0.00020821,2]
[372277858,1752571861272,-460.0,0.00020821,2]
[372277859,1752571861281,-460.0,0.00020821,2]
[372277860,1752571861295,-1740.72,0.00020821,2]
[372277861,1752571861304,-704.88,0.00020821,2]
[372277862,1752571861314,-2665.58,0.00020821,2]
[372277863,1752571861325,-476.17,0.00020821,2]
[372277864,1752571861335,-460.0,0.00020821,2]
[372277865,1752571861344,-545.29,0.00020821,2]
[372277866,1752571861354,-460.0,0.00020821,2]
[372277867,1752571861365,-460.0,0.00020821,2]
[372277868,1752571861375,-470.66,0.00020821,2]
[372277869,1752571861387,-460.0,0.00020821,2]
[372277870,1752571861397,-905.86,0.00020821,2]
[372277871,1752571861407,-463.66,0.00020821,2]
[372277872,1752571861417,-542.5,0.00020821,2]
[372277873,1752571861427,-460.0,0.00020821,2]
[372277874,1752571861436,-460.0,0.00020821,2]
[372277875,1752571861446,-460.0,0.00020821,2]
[372277876,1752571861455,-460.0,0.00020821,2]
[372277877,1752571861465,-460.0,0.00020821,2]
[372277878,1752571861474,-1143.82,0.00020821,2]
[372277879,1752571861485,-1638.83,0.00020821,2]
[372277880,1752571861494,-460.0,0.00020821,2]
[372277881,1752571861504,-756.13,0.00020821,2]
[372277882,1752571861513,-460.0,0.00020821,2]
[372277883,1752571861523,-1580.4,0.00020821,2]
[372277884,1752571861533,-460.0,0.00020821,2]
[372277885,1752571861543,-460.0,0.00020821,2]
[372277886,1752571861553,-1329.22,0.00020821,2]
[372277887,1752571861562,-495.78,0.00020821,2]
[372277888,1752571861573,-216.94396209,0.00020821,2]
[372277889,1752571861584,-460.0,0.00020821,2]
[372277890,1752571861594,-490.55,0.00020821,2]
[372277891,1752571861604,-669.87,0.00020821,2]
[372277892,1752571861613,-460.0,0.00020821,2]
[372277893,1752571861623,-460.0,0.00020821,2]
[372277894,1752571861632,-460.0,0.00020821,2]
[372277895,1752571861643,-568.72,0.00020821,2]
[372277896,1752571861653,-460.0,0.00020821,2]
[372277897,1752571861662,-460.0,0.00020821,2]
[372277898,1752571861672,-1223.83,0.00020821,2]
[372277899,1752571861681,-460.0,0.00020821,2]
[372277900,1752571861690,-460.0,0.00020821,2]
[372277901,1752571861700,-628.93,0.00020821,2]
[372277902,1752571861710,-460.0,0.00020821,2]
[372277903,1752571861719,-551.36,0.00020821,2]
[372277904,1752571861729,-5908.2,0.00020821,2]
[372277905,1752571861740,-500.0,0.00020822,2]
[372277906,1752571861750,-2500.0,0.00020864,2]
[372277907,1752571861762,-2500.0,0.00020864,2]
[372277908,1752571861774,-500.0,0.00020873,2]
[372277909,1752571861786,-500.0,0.00020873,2]
[372277910,1752571861796,-500.0,0.00020873,2]
[372277911,1752571861807,-723.999,0.00020894,2]
[372277912,1752571861817,-178.195,0.00020894,2]
[372277913,1752571861827,-249.79353952,0.000209,2]
[372277914,1752571861838,-8602.46192944,0.00020934,4]
[372277915,1752571861847,-500.0,0.00020973,2]
[372277916,1752571861857,-10000.0,0.00021,5]
[372277917,1752571861867,-542.42549754,0.00021,2]
[372277918,1752571861876,-9317.72446714,0.00021,2]
[372277919,1752571861886,-269.90181322,0.00021,2]
[372277920,1752571861896,-169.10995551,0.00021,10]
[372277921,1752571861906,-133619.60154179,0.00021,3]
[372277922,1752571861916,-257728.93359636,0.00021,15]
[372277923,1752571861926,-360.0,0.00021004,2]
[372277924,1752571861936,-151.0,0.00021085,2]
[372277925,1752571861945,-25000.0,0.00021085,2]
[372277926,1752571861955,-460.0,0.00021095,2]
[372277927,1752571861965,-460.0,0.00021095,2]
[372277928,1752571861974,-567.39,0.00021095,2]
[372277929,1752571861985,-460.0,0.00021095,2]
[372277930,1752571861995,-460.0,0.00021095,2]
[372277931,1752571862005,-460.0,0.00021095,2]
[372277932,1752571862016,-460.0,0.00021095,2]
[372277933,1752571862026,-460.0,0.00021095,2]
[372277934,1752571862037,-619.45,0.00021095,2]
[372277935,1752571862047,-460.0,0.00021095,2]
[372277936,1752571862057,-460.0,0.00021095,2]
[372277937,1752571862067,-460.0,0.00021095,2]
[372277938,1752571862076,-460.0,0.00021095,2]
[372277939,1752571862086,-696.49,0.00021095,2]
[372277940,1752571862096,-460.0,0.00021095,2]
[372277941,1752571862105,-460.0,0.00021095,2]
[372277942,1752571862115,-749.49,0.00021095,2]
[372277943,1752571862124,-460.0,0.00021095,2]
[372277944,1752571862134,-467.67,0.00021095,2]
[372277945,1752571862143,-460.0,0.00021095,2]
[372277946,1752571862153,-460.0,0.00021095,2]
[372277947,1752571862162,-460.0,0.00021095,2]
[372277948,1752571862172,-425.48832527,0.00021095,2]
[372277949,1752571862181,-460.0,0.00021095,2]
[372277950,1752571862191,-460.0,0.00021095,2]
[372277951,1752571862200,-460.0,0.00021095,2]
[372277952,1752571862209,-460.0,0.00021095,2]
[372277953,1752571862219,-744.05,0.00021095,2]
[372277954,1752571862228,-460.0,0.00021095,2]
[372277955,1752571862238,-156.83496223,0.00021095,2]
[372277956,1752571862248,-460.0,0.00021095,2]
[372277957,1752571862257,-441.14699189,0.00021095,2]
[372277958,1752571862267,-749.3,0.00021095,2]
[372277959,1752571862276,-460.0,0.00021095,2]
[372277960,1752571862385,-460.0,0.00021095,2]
[372277961,1752571862403,-460.0,0.00021095,2]
[372277962,1752571862414,-460.0,0.00021095,2]
[372277963,1752571862424,-195.76260256,0.00021095,2]
[372277964,1752571862433,-460.0,0.00021095,2]
[372277965,1752571862444,-460.0,0.00021095,2]
[372277966,1752571862453,-537.00062229,0.00021095,2]
[372277967,1752571862463,-722.17,0.00021095,2]
[372277968,1752571862473,-460.0,0.00021095,2]
[372277969,1752571862483,-330.68003145,0.00021095,2]
[372277970,1752571862493,-460.0,0.00021095,2]
[372277971,1752571862503,-460.0,0.00021095,2]
[372277972,1752571862512,-460.0,0.00021095,2]
[372277973,1752571862522,-460.0,0.00021095,2]
[372277974,1752571862531,-460.0,0.00021095,2]
[372277975,1752571862541,-460.0,0.00021095,2]
[372277976,1752571862551,-460.0,0.00021095,2]
[372277977,1752571862560,-460.0,0.00021095,2]
[372277978,1752571862569,-460.0,0.00021095,2]
[372277979,1752571862579,-460.0,0.00021095,2]
[372277980,1752571862589,-460.0,0.00021095,2]
[372277981,1752571862599,-460.0,0.00021095,2]
[372277982,1752571862608,-320.66908014,0.00021095,2]
[372277983,1752571862618,-460.0,0.00021095,2]
[372277984,1752571862628,-481.24664277,0.00021095,2]
[372277985,1752571862637,-1973.65,0.00021095,2]
[372277986,1752571862646,-460.0,0.00021095,2]
[372277987,1752571862656,-460.0,0.00021095,2]
[372277988,1752571862665,-460.0,0.00021095,2]
[372277989,1752571862675,-460.0,0.00021095,2]
[372277990,1752571862685,-460.0,0.00021095,2]
[372277991,1752571862694,-4194.43,0.00021095,2]
[372277992,1752571862704,-460.0,0.00021095,2]
[372277993,1752571862714,-1047.41,0.00021095,2]
[372277994,1752571862723,-460.0,0.00021095,2]
[372277995,1752571862733,-862.77,0.00021095,2]
[372277996,1752571862744,-1374.17,0.00021095,2]
[372277997,1752571862755,-4931.56,0.00021095,2]
[372277998,1752571862766,-460.0,0.00021095,2]
[372277999,1752571862778,-460.0,0.00021095,2]
[372278000,1752571862788,-460.0,0.00021095,2]
[372278001,1752571862799,-460.0,0.00021095,2]
[372278002,1752571862810,-460.0,0.00021095,2]
[372278003,1752571862822,-460.0,0.00021095,2]
[372278004,1752571862832,-460.0,0.00021095,2]
[372278005,1752571862842,-460.0,0.00021095,2]
[372278006,1752571862851,-460.0,0.00021095,2]
[372278007,1752571862860,-460.0,0.00021095,2]
[372278008,1752571862870,-3287.18,0.00021095,2]
[372278009,1752571862879,-460.0,0.00021095,2]
[372278010,1752571862889,-460.0,0.00021095,2]
[372278011,1752571862899,-5076.08,0.00021095,2]
[372278012,1752571862909,-598.12,0.00021095,2]
[372278013,1752571862919,-1503.55,0.00021095,2]
[372278014,1752571862928,-532.6,0.00021095,2]
[372278015,1752571862938,-460.0,0.00021095,2]
[372278016,1752571862948,-460.0,0.00021095,2]
[372278017,1752571862955,-460.0,0.00021095,2]
[372278018,1752571862963,-460.0,0.00021095,2]
[372278019,1752571862971,-460.0,0.00021095,2]
[372278020,1752571862978,-460.0,0.00021095,2]
[372278021,1752571862987,-460.0,0.00021095,2]
[372278022,1752571862996,-460.0,0.00021095,2]
[372278023,1752571863004,-460.0,0.00021095,2]
[372278024,1752571863012,-460.0,0.00021095,2]
[372278025,1752571863021,-511.82,0.00021095,2]
[372278026,1752571863030,-1740.72,0.00021095,2]
[372278027,1752571863037,-704.88,0.00021095,2]
[372278028,1752571863046,-2665.58,0.00021095,2]
[372278029,1752571863053,-476.17,0.00021095,2]
[372278030,1752571863060,-460.0,0.00021095,2]
[372278031,1752571863069,-545.29,0.00021095,2]
[372278032,1752571863077,-460.0,0.00021095,2]
[372278033,1752571863086,-192.40003544,0.00021095,2]
[372278034,1752571863094,-470.66,0.00021095,2]
[372278035,1752571863102,-460.0,0.00021095,2]
[372278036,1752571863110,-905.86,0.00021095,2]
[372278037,1752571863119,-463.66,0.00021095,2]
[372278038,1752571863129,-542.5,0.00021095,2]
[372278039,1752571863139,-460.0,0.00021095,2]
[372278040,1752571863149,-460.0,0.00021095,2]
[372278041,1752571863159,-460.0,0.00021095,2]
[372278042,1752571863169,-460.0,0.00021095,2]
[372278043,1752571863179,-460.0,0.00021095,2]
[372278044,1752571863190,-1143.82,0.00021095,2]
[372278045,1752571863201,-1638.83,0.00021095,2]
[372278046,1752571863213,-484.83126635,0.00021095,2]
[372278047,1752571863224,-756.13,0.00021095,2]
[372278048,1752571863235,-460.0,0.00021095,2]
[372278049,1752571863246,-1580.4,0.00021095,2]
[372278050,1752571863257,-460.0,0.00021095,2]
[372278051,1752571863272,-460.0,0.00021095,2]
[372278052,1752571863293,-1329.22,0.00021095,2]
[372278053,1752571863310,-460.0,0.00021095,2]
[372278054,1752571863327,-490.55,0.00021095,2]
[372278055,1752571863344,-669.87,0.00021095,2]
[372278056,1752571863361,-460.0,0.00021095,2]
[372278057,1752571863380,-460.0,0.00021095,2]
[372278058,1752571863397,-460.0,0.00021095,2]
[372278059,1752571863412,-568.72,0.00021095,2]
[372278060,1752571863427,-460.0,0.00021095,2]
[372278061,1752571863442,-460.0,0.00021095,2]
[372278062,1752571863456,-1223.83,0.00021095,2]
[372278063,1752571863470,-460.0,0.00021095,2]
[372278064,1752571863485,-460.0,0.00021095,2]
[372278065,1752571863502,-628.93,0.00021095,2]
[372278066,1752571863520,-5908.2,0.00021095,2]
[372278067,1752571863538,-551.36,0.00021095,2]
[372278068,1752571863550,-500.0,0.00021096,2]
[372278069,1752571863563,-151.0,0.000211,3]
[372278070,1752571863580,-2000.0,0.00021116,2]
[372278071,1752571863595,-504.65986824,0.00021116,2]
[372278072,1752571863608,-1510.82927339,0.00021116,2]
[372278073,1752571863623,-2000.0,0.00021116,2]
[372278074,1752571863636,-1500.0,0.00021116,2]
[372278075,1752571863648,-1000.0,0.00021121,2]
[372278076,1752571863662,-600.0,0.00021134,2]
[372278077,1752571863675,-8602.46192944,0.00021141,4]
[372278078,1752571863688,-1000.0,0.0002121,2]
[372278079,1752571863700,-502.34576079,0.00021241,2]
[372278080,1752571863714,-8602.46192944,0.00021348,5]
[372278081,1752571863727,-460.0,0.00021369,2]
[372278082,1752571863743,-460.0,0.00021369,2]
[372278083,1752571863756,-567.39,0.00021369,2]
[372278084,1752571863771,-460.0,0.00021369,2]
[372278085,1752571863785,-460.0,0.00021369,2]
[372278086,1752571863799,-460.0,0.00021369,2]
[372278087,1752571863813,-460.0,0.00021369,2]
[372278088,1752571863826,-460.0,0.00021369,2]
[372278089,1752571863840,-619.45,0.00021369,2]
[372278090,1752571863853,-460.0,0.00021369,2]
[372278091,1752571863867,-460.0,0.00021369,2]
[372278092,1752571863880,-460.0,0.00021369,2]
[372278093,1752571863894,-460.0,0.00021369,2]
[372278094,1752571863907,-696.49,0.00021369,2]
[372278095,1752571863920,-460.0,0.00021369,2]
[372278096,1752571863934,-460.0,0.00021369,2]
[372278097,1752571863948,-749.49,0.00021369,2]
[372278098,1752571863961,-460.0,0.00021369,2]
[372278099,1752571863976,-467.67,0.00021369,2]
[372278100,1752571863990,-460.0,0.00021369,2]
[372278101,1752571864004,-460.0,0.00021369,2]
[372278102,1752571864018,-460.0,0.00021369,2]
[372278103,1752571864028,-460.0,0.00021369,2]
[372278104,1752571864037,-460.0,0.00021369,2]
[372278105,1752571864047,-744.05,0.00021369,2]
[372278106,1752571864057,-460.0,0.00021369,2]
[372278107,1752571864067,-460.0,0.00021369,2]
[372278108,1752571864076,-749.3,0.00021369,2]
[372278109,1752571864086,-460.0,0.00021369,2]
[372278110,1752571864096,-460.0,0.00021369,2]
[372278111,1752571864106,-460.0,0.00021369,2]
[372278112,1752571864116,-460.0,0.00021369,2]
[372278113,1752571864125,-460.0,0.00021369,2]
[372278114,1752571864135,-460.0,0.00021369,2]
[372278115,1752571864145,-722.17,0.00021369,2]
[372278116,1752571864155,-460.0,0.00021369,2]
[372278117,1752571864165,-460.0,0.00021369,2]
[372278118,1752571864175,-460.0,0.00021369,2]
[372278119,1752571864185,-460.0,0.00021369,2]
[372278120,1752571864196,-460.0,0.00021369,2]
[372278121,1752571864206,-460.0,0.00021369,2]
[372278122,1752571864216,-460.0,0.00021369,2]
[372278123,1752571864226,-460.0,0.00021369,2]
[372278124,1752571864235,-460.0,0.00021369,2]
[372278125,1752571864246,-460.0,0.00021369,2]
[372278126,1752571864255,-460.0,0.00021369,2]
[372278127,1752571864264,-460.0,0.00021369,2]
[372278128,1752571864274,-460.0,0.00021369,2]
[372278129,1752571864283,-460.0,0.00021369,2]
[372278130,1752571864297,-1973.65,0.00021369,2]
[372278131,1752571864307,-460.0,0.00021369,2]
[372278132,1752571864316,-460.0,0.00021369,2]
[372278133,1752571864329,-460.0,0.00021369,2]
[372278134,1752571864339,-460.0,0.00021369,2]
[372278135,1752571864348,-460.0,0.00021369,2]
[372278136,1752571864358,-4194.43,0.00021369,2]
[372278137,1752571864368,-1047.41,0.00021369,2]
[372278138,1752571864378,-460.0,0.00021369,2]
[372278139,1752571864387,-862.77,0.00021369,2]
[372278140,1752571864397,-1374.17,0.00021369,2]
[372278141,1752571864662,-4931.56,0.00021369,2]
[372278142,1752571864678,-460.0,0.00021369,2]
[372278143,1752571864689,-460.0,0.00021369,2]
[372278144,1752571864699,-460.0,0.00021369,2]
[372278145,1752571864709,-460.0,0.00021369,2]
[372278146,1752571864718,-460.0,0.00021369,2]
[372278147,1752571864729,-460.0,0.00021369,2]
[372278148,1752571864739,-458.0,0.00021369,2]
[372278149,1752571864748,-460.0,0.00021369,2]
[372278150,1752571864757,-401.89557212,0.00021369,2]
[372278151,1752571864767,-3287.18,0.00021369,2]
[372278152,1752571864776,-460.0,0.00021369,2]
[372278153,1752571864786,-460.0,0.00021369,2]
[372278154,1752571864796,-5076.08,0.00021369,2]
[372278155,1752571864806,-598.12,0.00021369,2]
[372278156,1752571864815,-1503.55,0.00021369,2]
[372278157,1752571864824,-532.6,0.00021369,2]
[372278158,1752571864834,-460.0,0.00021369,2]
[372278159,1752571864844,-460.0,0.00021369,2]
[372278160,1752571864853,-460.0,0.00021369,2]
[372278161,1752571864863,-460.0,0.00021369,2]
[372278162,1752571864872,-460.0,0.00021369,2]
[372278163,1752571864881,-460.0,0.00021369,2]
[372278164,1752571864891,-460.0,0.00021369,2]
[372278165,1752571864900,-460.0,0.00021369,2]
[372278166,1752571864910,-460.0,0.00021369,2]
[372278167,1752571864919,-460.0,0.00021369,2]
[372278168,1752571864928,-511.82,0.00021369,2]
[372278169,1752571864938,-1740.72,0.00021369,2]
[372278170,1752571864948,-704.88,0.00021369,2]
[372278171,1752571864957,-2665.58,0.00021369,2]
[372278172,1752571864966,-476.17,0.00021369,2]
[372278173,1752571864976,-460.0,0.00021369,2]
[372278174,1752571864985,-545.29,0.00021369,2]
[372278175,1752571864996,-460.0,0.00021369,2]
[372278176,1752571865005,-470.66,0.00021369,2]
[372278177,1752571865015,-460.0,0.00021369,2]
[372278178,1752571865025,-905.86,0.00021369,2]
[372278179,1752571865034,-463.66,0.00021369,2]
[372278180,1752571865044,-542.5,0.00021369,2]
[372278181,1752571865053,-460.0,0.00021369,2]
[372278182,1752571865063,-460.0,0.00021369,2]
[372278183,1752571865072,-460.0,0.00021369,2]
[372278184,1752571865082,-460.0,0.00021369,2]
[372278185,1752571865091,-460.0,0.00021369,2]
[372278186,1752571865101,-1143.82,0.00021369,2]
[372278187,1752571865111,-1638.83,0.00021369,2]
[372278188,1752571865120,-756.13,0.00021369,2]
[372278189,1752571865130,-460.0,0.00021369,2]
[372278190,1752571865140,-1580.4,0.00021369,2]
[372278191,1752571865150,-460.0,0.00021369,2]
[372278192,1752571865159,-555.21943244,0.00021369,2]
[372278193,1752571865168,-1329.22,0.00021369,2]
[372278194,1752571865178,-460.0,0.00021369,2]
[372278195,1752571865187,-490.55,0.00021369,2]
[372278196,1752571865196,-669.87,0.00021369,2]
[372278197,1752571865206,-460.0,0.00021369,2]
[372278198,1752571865217,-460.0,0.00021369,2]
[372278199,1752571865228,-460.0,0.00021369,2]
[372278200,1752571865238,-568.72,0.00021369,2]
[372278201,1752571865247,-460.0,0.00021369,2]
[372278202,1752571865259,-1223.83,0.00021369,2]
[372278203,1752571865269,-460.0,0.00021369,2]
[372278204,1752571865279,-460.0,0.00021369,2]
[372278205,1752571865292,-460.0,0.00021369,2]
[372278206,1752571865301,-628.93,0.00021369,2]
[372278207,1752571865311,-551.36,0.00021369,2]
[372278208,1752571865320,-5908.2,0.00021369,2]
[372278209,1752571865329,-500.0,0.0002137,2]
[372278210,1752571865341,-136040.79061357,0.00021388,2]
[372278211,1752571865351,-3000.0,0.00021412,2]
[372278212,1752571865362,-267.32238755,0.00021412,2]
[372278213,1752571865372,-1000.0,0.00021421,2]
[372278214,1752571865381,-1005.05020048,0.00021421,2]
[372278215,1752571865390,-522.10421559,0.00021421,2]
[372278216,1752571865399,-3404.57277499,0.00021427,2]
[372278217,1752571865409,-867.61267343,0.0002146,2]
[372278218,1752571865418,-501.86520861,0.00021512,2]
[372278219,1752571865428,-503.01863022,0.00021512,2]
[372278220,1752571865439,-348.96960184,0.00021512,2]
[372278221,1752571865450,-500.0,0.00021512,2]
[372278222,1752571865460,-460.0,0.00021552,2]
[372278223,1752571865470,-8602.46192944,0.00021555,5]
[372278224,1752571865480,-151.0,0.00021633,2]
[372278225,1752571865490,-25000.0,0.00021633,2]
[372278226,1752571865500,-460.0,0.00021643,2]
[372278227,1752571865510,-460.0,0.00021643,2]
[372278228,1752571865520,-460.0,0.00021643,2]
[372278229,1752571865530,-567.39,0.00021643,2]
[372278230,1752571865540,-460.0,0.00021643,2]
[372278231,1752571865550,-460.0,0.00021643,2]
[372278232,1752571865559,-460.0,0.00021643,2]
[372278233,1752571865569,-460.0,0.00021643,2]
[372278234,1752571865579,-619.45,0.00021643,2]
[372278235,1752571865590,-460.0,0.00021643,2]
[372278236,1752571865600,-460.0,0.00021643,2]
[372278237,1752571865610,-460.0,0.00021643,2]
[372278238,1752571865620,-460.0,0.00021643,2]
[372278239,1752571865630,-696.49,0.00021643,2]
[372278240,1752571865641,-460.0,0.00021643,2]
[372278241,1752571865652,-460.0,0.00021643,2]
[372278242,1752571865662,-749.49,0.00021643,2]
[372278243,1752571865671,-460.0,0.00021643,2]
[372278244,1752571865682,-467.67,0.00021643,2]
[372278245,1752571865693,-186.36229032,0.00021643,2]
[372278246,1752571865703,-460.0,0.00021643,2]
[372278247,1752571865712,-460.0,0.00021643,2]
[372278248,1752571865722,-460.0,0.00021643,2]
[372278249,1752571865733,-460.0,0.00021643,2]
[372278250,1752571865743,-744.05,0.00021643,2]
[372278251,1752571865752,-460.0,0.00021643,2]
[372278252,1752571865762,-460.0,0.00021643,2]
[372278253,1752571865772,-749.3,0.00021643,2]
[372278254,1752571865782,-460.0,0.00021643,2]
[372278255,1752571865791,-460.0,0.00021643,2]
[372278256,1752571865802,-460.0,0.00021643,2]
[372278257,1752571865813,-460.0,0.00021643,2]
[372278258,1752571865822,-460.0,0.00021643,2]
[372278259,1752571865833,-460.0,0.00021643,2]
[372278260,1752571865843,-555.52314097,0.00021643,2]
[372278261,1752571865853,-722.17,0.00021643,2]
[372278262,1752571865863,-460.0,0.00021643,2]
[372278263,1752571865873,-460.0,0.00021643,2]
[372278264,1752571865884,-460.0,0.00021643,2]
[372278265,1752571865894,-460.0,0.00021643,2]
[372278266,1752571865904,-460.0,0.00021643,2]
[372278267,1752571865914,-460.0,0.00021643,2]
[372278268,1752571865923,-460.0,0.00021643,2]
[372278269,1752571865933,-460.0,0.00021643,2]
[372278270,1752571865943,-460.0,0.00021643,2]
[372278271,1752571865953,-460.0,0.00021643,2]
[372278272,1752571865962,-460.0,0.00021643,2]
[372278273,1752571865972,-460.0,0.00021643,2]
[372278274,1752571865981,-460.0,0.00021643,2]
[372278275,1752571865991,-460.0,0.00021643,2]
[372278276,1752571866001,-1973.65,0.00021643,2]
[372278277,1752571866011,-460.0,0.00021643,2]
[372278278,1752571866021,-460.0,0.00021643,2]
[372278279,1752571866031,-460.0,0.00021643,2]
[372278280,1752571866040,-460.0,0.00021643,2]
[372278281,1752571866051,-460.0,0.00021643,2]
[372278282,1752571866060,-4194.43,0.00021643,2]
[372278283,1752571866070,-1047.41,0.00021643,2]
[372278284,1752571866079,-460.0,0.00021643,2]
[372278285,1752571866089,-862.77,0.00021643,2]
[372278286,1752571866099,-1374.17,0.00021643,2]
[372278287,1752571866109,-4931.56,0.00021643,2]
[372278288,1752571866119,-469.10647165,0.00021643,2]
[372278289,1752571866129,-460.0,0.00021643,2]
[372278290,1752571866139,-460.0,0.00021643,2]
[372278291,1752571866149,-460.0,0.00021643,2]
[372278292,1752571866159,-460.0,0.00021643,2]
[372278293,1752571866168,-460.0,0.00021643,2]
[372278294,1752571866177,-460.0,0.00021643,2]
[372278295,1752571866187,-3287.18,0.00021643,2]
[372278296,1752571866196,-460.0,0.00021643,2]
[372278297,1752571866206,-460.0,0.00021643,2]
[372278298,1752571866216,-5076.08,0.00021643,2]
[372278299,1752571866226,-598.12,0.00021643,2]
[372278300,1752571866235,-1503.55,0.00021643,2]
[372278301,1752571866247,-532.6,0.00021643,2]